fUSD/lending_fUSD_20260617
["ID","MTS","AMOUNT","RATE_DAILY","PERIOD"]
[425261910,1781639455000,-369.71199633,0.0003,30]
[425261905,1781639455000,-90937.87154783,0.0003,7]
[425261909,1781639455000,-211.9,0.0003,11]
[425261906,1781639455000,-200.0,0.0003,2]
[425261913,1781639455000,-975.644298,0.0003,7]
[425261916,1781639455000,-975.64429,0.0003,7]
[425261915,1781639455000,-975.644298,0.0003,7]
[425261924,1781639455000,-157.0,0.00030002,30]
[425261918,1781639455000,-2000.0,0.0003,7]
[425261919,1781639455000,-157.0,0.00030002,30]
[425261920,1781639455000,-154.0,0.00030002,30]
[425261921,1781639455000,-390.0,0.00030002,30]
[425261922,1781639455000,-160.0,0.00030002,30]
[425261923,1781639455000,-209.0,0.00030002,30]
[425261926,1781639455000,-157.0,0.00030016,30]
[425261925,1781639455000,-151.0,0.00030016,30]
[425261882,1781639455000,-1855.75109439,0.0003,2]
[425261927,1781639455000,-152.0,0.00030016,30]
[425261904,1781639455000,-90937.87154783,0.0003,7]
[425261914,1781639455000,-975.644298,0.0003,7]
[425261917,1781639455000,-846.480728,0.0003,7]
[425261903,1781639455000,-876.60317,0.0003,7]
[425261884,1781639455000,-166.37039314,0.0003,2]
[425261885,1781639455000,-151.0,0.0003,7]
[425261907,1781639455000,-262.16201594,0.0003,7]
[425261883,1781639455000,-1000.0,0.0003,2]
[425261886,1781639455000,-151.0,0.0003,7]
[425261887,1781639455000,-172.02510869,0.0003,2]
[425261892,1781639455000,-2234.84,0.0003,2]
[425261889,1781639455000,-2499.98,0.0003,2]
[425261890,1781639455000,-369.71199633,0.0003,30]
[425261888,1781639455000,-155.91294862,0.0003,2]
[425261893,1781639455000,-2499.99,0.0003,2]
[425261895,1781639455000,-260.94624085,0.0003,2]
[425261894,1781639455000,-11872.82,0.0003,2]
[425261896,1781639455000,-2499.99,0.0003,2]
[425261897,1781639455000,-14630.06,0.0003,2]
[425261898,1781639455000,-876.603178,0.0003,7]
[425261901,1781639455000,-876.603178,0.0003,7]
[425261899,1781639455000,-2500.0,0.0003,2]
[425261902,1781639455000,-876.603178,0.0003,7]
[425261891,1781639455000,-1304.73120426,0.0003,2]
[425261900,1781639455000,-151.0,0.0003,7]
[425261957,1781639456000,-500.0,0.00030137,3]
[425261963,1781639456000,-150.0,0.00030137,3]
[425261958,1781639456000,-299.9,0.00030137,2]
[425261956,1781639456000,-1970.0,0.00030137,120]
[425261954,1781639456000,-500.0,0.00030137,3]
[425261960,1781639456000,-500.0,0.00030137,3]
[425261961,1781639456000,-178.3012988,0.00030137,30]
[425261955,1781639456000,-500.0,0.00030137,3]
[425261962,1781639456000,-162.96,0.00030137,7]
[425261959,1781639456000,-500.0,0.00030137,3]
[425261964,1781639456000,-1066.3,0.00030137,7]
[425261974,1781639456000,-1500.0,0.00030137,15]
[425261971,1781639456000,-1500.0,0.00030137,15]
[425261965,1781639456000,-1039.59,0.00030137,7]
[425261973,1781639456000,-1500.0,0.00030137,15]
[425261966,1781639456000,-1500.0,0.00030137,15]
[425261972,1781639456000,-1500.0,0.00030137,15]
[425261970,1781639456000,-1500.0,0.00030137,15]
[425261967,1781639456000,-1500.0,0.00030137,15]
[425261968,1781639456000,-1500.0,0.00030137,15]
[425261976,1781639456000,-1839.90977,0.00030137,15]
[425261948,1781639456000,-655.99592976,0.00030137,2]
[425261969,1781639456000,-1500.0,0.00030137,15]
[425261952,1781639456000,-500.0,0.00030137,3]
[425261928,1781639456000,-448.0,0.00030016,30]
[425261946,1781639456000,-581.37258776,0.00030135,2]
[425261975,1781639456000,-1500.0,0.00030137,15]
[425261933,1781639456000,-506.05,0.00030037,14]
[425261930,1781639456000,-163.0,0.00030016,30]
[425261929,1781639456000,-712.0,0.00030016,30]
[425261932,1781639456000,-195.0,0.00030016,30]
[425261931,1781639456000,-157.0,0.00030016,30]
[425261935,1781639456000,-399.0,0.00030037,2]
[425261937,1781639456000,-2532.4803976,0.00030063,2]
[425261943,1781639456000,-4518850.24002132,0.0003013,7]
[425261936,1781639456000,-155.55967759,0.00030037,2]
[425261951,1781639456000,-1644.23,0.00030137,30]
[425261942,1781639456000,-225.96662686,0.00030129,2]
[425261938,1781639456000,-200.0,0.00030119,2]
[425261940,1781639456000,-300.0,0.00030129,10]
[425261934,1781639456000,-150.0,0.00030037,2]
[425261939,1781639456000,-300.0,0.00030129,10]
[425261945,1781639456000,-151.0,0.0003013,7]
[425261944,1781639456000,-151.0,0.0003013,7]
[425261949,1781639456000,-500.0,0.00030137,3]
[425261947,1781639456000,-187.5,0.00030137,2]
[425261953,1781639456000,-500.0,0.00030137,3]
[425261950,1781639456000,-207.91837504,0.00030137,7]
[425261941,1781639456000,-300.0,0.00030129,10]
[425261977,1781639456000,-287.43,0.00030137,7]
[425262024,1781639456000,-774.34150442,0.00030362,7]
[425261979,1781639456000,-3239.726984,0.00030149,2]
[425262006,1781639456000,-593.0,0.00030341,5]
[425262010,1781639456000,-956.97815039,0.00030354,7]
[425262011,1781639456000,-791.40295423,0.00030354,2]
[425262012,1781639456000,-952.51769333,0.00030354,7]
[425262009,1781639456000,-941.00838716,0.00030354,7]
[425262007,1781639456000,-674.76590532,0.00030348,2]
[425262013,1781639456000,-914.04841243,0.00030354,7]
[425262008,1781639456000,-875.17101723,0.00030354,7]
[425262014,1781639456000,-950.00454004,0.00030354,7]
[425262016,1781639456000,-911.98279464,0.00030354,7]
[425262005,1781639456000,-500.0,0.00030333,20]
[425262023,1781639456000,-949.86071446,0.00030362,7]
[425262022,1781639456000,-956.90152421,0.00030362,7]
[425262019,1781639456000,-870.65928945,0.00030354,7]
[425262018,1781639456000,-876.61218086,0.00030354,7]
[425262021,1781639456000,-828.22769001,0.00030362,7]
[425262020,1781639456000,-751.26164519,0.00030354,7]
[425262025,1781639456000,-240.38418592,0.00030366,2]
[425262027,1781639456000,-674.76590532,0.00030367,2]
[425262028,1781639456000,-200.0,0.000304,11]
[425262026,1781639456000,-176.81427207,0.00030366,2]
[425261978,1781639456000,-200.0,0.00030137,2]
[425262015,1781639456000,-753.03113882,0.00030354,7]
[425262004,1781639456000,-200.0,0.000303,2]
[425262017,1781639456000,-983.68035936,0.00030354,7]
[425262001,1781639456000,-290.3986294,0.00030206,2]
[425261982,1781639456000,-53133.7957335,0.00030149,2]
[425262003,1781639456000,-674.76590532,0.00030253,2]
[425261983,1781639456000,-225.84570254,0.000302,120]
[425261981,1781639456000,-1285.2678476,0.00030149,2]
[425261980,1781639456000,-11377.8386386,0.00030149,2]
[425261985,1781639456000,-157.0,0.000302,120]
[425261993,1781639456000,-346.0,0.000302,120]
[425261984,1781639456000,-306.0,0.000302,120]
[425261988,1781639456000,-204.0,0.000302,120]
[425261986,1781639456000,-164.0,0.000302,120]
[425261989,1781639456000,-1615.0,0.000302,120]
[425261991,1781639456000,-265.0,0.000302,120]
[425261992,1781639456000,-200.0,0.000302,120]
[425261997,1781639456000,-2886.11,0.000302,7]
[425261987,1781639456000,-344.0,0.000302,120]
[425262002,1781639456000,-2500.0,0.0003025,2]
[425261998,1781639456000,-4000.0,0.000302,3]
[425261999,1781639456000,-674.76590532,0.00030204,2]
[425262000,1781639456000,-175.0,0.00030205,14]
[425261995,1781639456000,-196.0,0.000302,120]
[425261994,1781639456000,-676.0,0.000302,120]
[425261990,1781639456000,-300.0,0.000302,120]
[425261996,1781639456000,-2160.63,0.000302,7]
[425262064,1781639457000,-250.0,0.000308,30]
[425262048,1781639457000,-2000.0,0.00030702,30]
[425262055,1781639457000,-2000.0,0.00030702,30]
[425262059,1781639457000,-747.80937859,0.00030751,2]
[425262058,1781639457000,-644.79446245,0.00030751,2]
[425262060,1781639457000,-301.14337869,0.00030754,2]
[425262061,1781639457000,-150.0,0.00030775,14]
[425262062,1781639457000,-150.0,0.00030775,14]
[425262067,1781639457000,-2000.0,0.00030888,2]
[425262066,1781639457000,-2000.0,0.00030888,2]
[425262063,1781639457000,-577.0,0.00030789,5]
[425262074,1781639457000,-200.0,0.00030909,2]
[425262065,1781639457000,-593.0,0.00030875,6]
[425262070,1781639457000,-2000.0,0.00030888,2]
[425262069,1781639457000,-2000.0,0.00030888,2]
[425262072,1781639457000,-2160.63,0.000309,7]
[425262071,1781639457000,-2000.0,0.00030888,2]
[425262075,1781639457000,-157.0,0.00031002,30]
[425262079,1781639457000,-209.0,0.00031002,30]
[425262078,1781639457000,-160.0,0.00031002,30]
[425262076,1781639457000,-154.0,0.00031002,30]
[425262054,1781639457000,-2000.0,0.00030702,30]
[425262068,1781639457000,-2000.0,0.00030888,2]
[425262056,1781639457000,-200.0,0.00030743,2]
[425262035,1781639457000,-152.0,0.0003049,6]
[425262053,1781639457000,-2000.0,0.00030702,30]
[425262077,1781639457000,-390.0,0.00031002,30]
[425262036,1781639457000,-2500.0,0.000305,2]
[425262031,1781639457000,-200.0,0.00030438,2]
[425262032,1781639457000,-241.82,0.00030441,8]
[425262029,1781639457000,-277.5,0.00030411,120]
[425262030,1781639457000,-250.0,0.00030426,7]
[425262033,1781639457000,-221.71,0.00030441,8]
[425262034,1781639457000,-172.0,0.0003045,120]
[425262038,1781639457000,-200.0,0.00030603,2]
[425262045,1781639457000,-200.0,0.00030667,2]
[425262037,1781639457000,-1659.51,0.00030502,7]
[425262042,1781639457000,-191.75,0.00030648,14]
[425262039,1781639457000,-167.31,0.00030648,14]
[425262041,1781639457000,-167.3,0.00030648,14]
[425262044,1781639457000,-908.10074191,0.00030661,7]
[425262046,1781639457000,-2000.0,0.00030702,30]
[425262043,1781639457000,-191.76,0.00030648,14]
[425262040,1781639457000,-167.31,0.00030648,14]
[425262049,1781639457000,-2000.0,0.00030702,30]
[425262047,1781639457000,-2000.0,0.00030702,30]
[425262050,1781639457000,-2000.0,0.00030702,30]
[425262052,1781639457000,-2000.0,0.00030702,30]
[425262051,1781639457000,-2000.0,0.00030702,30]
[425262057,1781639457000,-151.0,0.00030751,2]
[425262073,1781639457000,-2886.11,0.000309,7]
[425262085,1781639457000,-150.0,0.0003101,30]
[425262080,1781639457000,-157.0,0.00031002,30]
[425262108,1781639457000,-1078.88558522,0.0003121,7]
[425262110,1781639457000,-1096.85809491,0.0003121,7]
[425262111,1781639457000,-903.63736658,0.0003121,7]
[425262109,1781639457000,-1143.02123199,0.0003121,7]
[425262113,1781639457000,-1094.37935357,0.0003121,7]
[425262119,1781639457000,-1139.83285736,0.00031217,7]
[425262117,1781639457000,-993.87322801,0.00031217,7]
[425262115,1781639457000,-1051.93461704,0.0003121,7]
[425262114,1781639457000,-1180.41643123,0.0003121,7]
[425262124,1781639457000,-250.0,0.00031398,7]
[425262125,1781639457000,-200.0,0.000314,11]
[425262118,1781639457000,-1148.28182905,0.00031217,7]
[425262116,1781639457000,-901.51397423,0.0003121,7]
[425262123,1781639457000,-200.0,0.00031361,2]
[425262121,1781639457000,-200.0,0.00031218,2]
[425262122,1781639457000,-500.0,0.00031243,21]
[425262120,1781639457000,-929.2098053,0.00031217,7]
[425262127,1781639457000,-593.0,0.00031409,6]
[425262132,1781639457000,-1439.20550567,0.000316,7]
[425262126,1781639457000,-1627.47,0.000314,7]
[425262128,1781639457000,-150.0,0.00031452,22]
[425262129,1781639457000,-581.37258776,0.00031504,2]
[425262081,1781639457000,-150.0,0.0003101,30]
[425262112,1781639457000,-1140.00544804,0.0003121,7]
[425262102,1781639457000,-283.3,0.00031062,30]
[425262131,1781639457000,-2160.63,0.000316,7]
[425262106,1781639457000,-949.68354508,0.0003121,2]
[425262104,1781639457000,-1000.0,0.000312,7]
[425262130,1781639457000,-191.00000005,0.00031507,15]
[425262090,1781639457000,-151.0,0.00031016,30]
[425262083,1781639457000,-287.0,0.0003101,30]
[425262088,1781639457000,-234.0,0.0003101,30]
[425262084,1781639457000,-150.0,0.0003101,30]
[425262082,1781639457000,-150.0,0.0003101,30]
[425262089,1781639457000,-150.0,0.00031011,2]
[425262086,1781639457000,-250.0,0.0003101,30]
[425262092,1781639457000,-152.0,0.00031016,30]
[425262091,1781639457000,-157.0,0.00031016,30]
[425262087,1781639457000,-157.0,0.0003101,30]
[425262097,1781639457000,-195.0,0.00031016,30]
[425262096,1781639457000,-157.0,0.00031016,30]
[425262101,1781639457000,-250.02,0.00031062,30]
[425262095,1781639457000,-163.0,0.00031016,30]
[425262094,1781639457000,-712.0,0.00031016,30]
[425262100,1781639457000,-223.65,0.00031062,30]
[425262093,1781639457000,-448.0,0.00031016,30]
[425262099,1781639457000,-150.0,0.00031062,30]
[425262098,1781639457000,-200.0,0.0003105,2]
[425262103,1781639457000,-2328.0,0.00031121,3]
[425262105,1781639457000,-1129.21006459,0.0003121,7]
[425262107,1781639457000,-1148.37378047,0.0003121,7]
[425262133,1781639459000,-762.15,0.000316,7]
[425262135,1781639459000,-150.0,0.0003161,2]
[425262136,1781639459000,-3288.94820907,0.00031657,2]
[425262134,1781639459000,-684.75449433,0.000316,7]
[425262137,1781639459000,-2043.0,0.00031657,2]
[425262139,1781639459000,-190.42773993,0.00031657,2]
[425262140,1781639459000,-152.0,0.00031826,7]
[425262141,1781639459000,-320.94312973,0.00031832,5]
[425262138,1781639459000,-555.624051,0.00031657,2]
[425262161,1781639460000,-2000.0,0.00030888,2]
[425262167,1781639460000,-187.17673045,0.00032,120]
[425262160,1781639460000,-2000.0,0.00030888,2]
[425262168,1781639460000,-205.5877057,0.00032,120]
[425262171,1781639460000,-175.86946112,0.00032,120]
[425262169,1781639460000,-168.47006721,0.00032,120]
[425262170,1781639460000,-191.89930294,0.00032,120]
[425262172,1781639460000,-171.00361539,0.00032,120]
[425262162,1781639460000,-2000.0,0.00030888,2]
[425262165,1781639460000,-593.0,0.00031943,7]
[425262164,1781639460000,-150.0,0.00031913,30]
[425262166,1781639460000,-1001.0,0.00031945,120]
[425262159,1781639460000,-846.480728,0.0003,7]
[425262163,1781639460000,-341.01351421,0.00031832,5]
[425262158,1781639460000,-846.480728,0.00029,7]
[425262146,1781639460000,-926.87,0.00027397,2]
[425262152,1781639460000,-926.87,0.00027397,2]
[425262174,1781639460000,-196.60703416,0.00032,120]
[425262142,1781639460000,151.0,0.00013973,2]
[425262144,1781639460000,-346.52273497,0.00027397,2]
[425262143,1781639460000,-522.16783329,0.00027397,2]
[425262145,1781639460000,-58.17943174,0.00027397,2]
[425262147,1781639460000,-926.87,0.00027397,2]
[425262157,1781639460000,-327.21174307,0.00028788,30]
[425262148,1781639460000,-926.87,0.00027397,2]
[425262149,1781639460000,-846.480728,0.00027397,2]
[425262151,1781639460000,-723.07306937,0.00028756,7]
[425262153,1781639460000,-146.16693063,0.00028756,7]
[425262155,1781639460000,-410.295,0.00028788,30]
[425262156,1781639460000,-846.480728,0.00027397,2]
[425262154,1781639460000,-131.73325693,0.00028788,30]
[425262150,1781639460000,-869.24,0.00028725,2]
[425262176,1781639460000,-172.30484506,0.00032,120]
[425262206,1781639460000,-369.71199633,0.00032222,30]
[425262182,1781639460000,-1792.26036971,0.00032,120]
[425262178,1781639460000,-240.43830193,0.00032,120]
[425262197,1781639460000,-151.0,0.00032016,30]
[425262196,1781639460000,-160.0,0.00032002,30]
[425262201,1781639460000,-712.0,0.00032016,30]
[425262204,1781639460000,-195.0,0.00032016,30]
[425262205,1781639460000,-500.0,0.0003218,23]
[425262195,1781639460000,-209.0,0.00032002,30]
[425262203,1781639460000,-157.0,0.00032016,30]
[425262200,1781639460000,-448.0,0.00032016,30]
[425262207,1781639460000,-300.0,0.00032231,10]
[425262198,1781639460000,-157.0,0.00032016,30]
[425262202,1781639460000,-168.0,0.00032016,30]
[425262208,1781639460000,-377.99479175,0.00032231,10]
[425262209,1781639460000,-19211.48618767,0.00032232,7]
[425262199,1781639460000,-152.0,0.00032016,30]
[425262188,1781639460000,-163.52100536,0.00032,120]
[425262190,1781639460000,-172.77420806,0.00032,120]
[425262187,1781639460000,-170.156791,0.00032,120]
[425262175,1781639460000,-191.58858688,0.00032,120]
[425262179,1781639460000,-183.18606006,0.00032,120]
[425262183,1781639460000,-411.90817834,0.00032,120]
[425262180,1781639460000,-315.06178872,0.00032,120]
[425262181,1781639460000,-161.55800474,0.00032,120]
[425262186,1781639460000,-160.29220129,0.00032,120]
[425262177,1781639460000,-198.85958557,0.00032,120]
[425262173,1781639460000,-179.4136144,0.00032,120]
[425262193,1781639460000,-390.0,0.00032002,30]
[425262184,1781639460000,-296.91972027,0.00032,120]
[425262191,1781639460000,-157.0,0.00032002,30]
[425262192,1781639460000,-154.0,0.00032002,30]
[425262194,1781639460000,-169.0,0.00032002,30]
[425262185,1781639460000,-179.00278928,0.00032,120]
[425262189,1781639460000,-205.3318073,0.00032,120]
[425262214,1781639461000,-19.70072034,0.000199,2]
[425262210,1781639461000,151.0,0.00013973,2]
[425262211,1781639461000,162.0,0.00014382,2]
[425262213,1781639461000,-165.220239,0.000199,2]
[425262212,1781639461000,-151.0,0.00016438,2]
[425262219,1781639461000,-794.78170272,0.00027397,2]
[425262218,1781639461000,-129.45797977,0.00027397,2]
[425262217,1781639461000,-797.41202023,0.00027397,2]
[425262216,1781639461000,-152.3514512,0.00027397,2]
[425262220,1781639461000,-132.08829728,0.00027397,2]
[425262221,1781639461000,-926.87,0.00027397,2]
[425262215,1781639461000,-774.5185488,0.00027397,2]
[425262239,1781639462000,-869.24,0.00028883,30]
[425262238,1781639462000,-869.24,0.00028852,7]
[425262243,1781639462000,-846.480728,0.00029,7]
[425262244,1781639462000,-846.480728,0.00029,7]
[425262242,1781639462000,-869.24,0.00028979,30]
[425262248,1781639462000,-869.24,0.00029105,2]
[425262245,1781639462000,-869.24,0.0002901,2]
[425262241,1781639462000,-869.24,0.00028947,7]
[425262246,1781639462000,-869.24,0.00029042,7]
[425262249,1781639462000,-846.480728,0.0003,7]
[425262252,1781639462000,-80788.51381233,0.00032232,7]
[425262250,1781639462000,-846.480727,0.0003,7]
[425262247,1781639462000,-869.24,0.00029074,30]
[425262240,1781639462000,-869.24,0.00028915,2]
[425262236,1781639462000,-846.480728,0.00027397,2]
[425262235,1781639462000,-846.480728,0.00027397,2]
[425262253,1781639462000,-200.0,0.00032258,4]
[425262234,1781639462000,-846.480728,0.00027397,2]
[425262233,1781639462000,-846.480728,0.00027397,2]
[425262231,1781639462000,-910.16198758,0.00027397,2]
[425262232,1781639462000,-846.480728,0.00027397,2]
[425262229,1781639462000,-926.87,0.00027397,2]
[425262226,1781639462000,-505.2325237,0.00027397,2]
[425262228,1781639462000,-926.87,0.00027397,2]
[425262227,1781639462000,-926.87,0.00027397,2]
[425262224,1781639462000,-246.63049728,0.00027397,2]
[425262225,1781639462000,-421.6374763,0.00027397,2]
[425262222,1781639462000,-926.87,0.00027397,2]
[425262223,1781639462000,-680.23950272,0.00027397,2]
[425262237,1781639462000,-869.24,0.0002882,2]
[425262251,1781639462000,-2000.0,0.00030888,2]
[425262230,1781639462000,-16.70801242,0.00027397,2]
[425262254,1781639462000,-7287.13377454,0.000323,120]
[425262256,1781639462000,-2886.11,0.000323,7]
[425262284,1781639462000,-1325.94757332,0.000325,14]
[425262286,1781639462000,-829.8,0.00032534,2]
[425262282,1781639462000,-1000.0,0.000325,7]
[425262285,1781639462000,-12540.0,0.00032514,12]
[425262283,1781639462000,-1000.0,0.000325,14]
[425262280,1781639462000,-1000.0,0.000325,2]
[425262278,1781639462000,-1051.76630327,0.00032492,7]
[425262279,1781639462000,-1000.0,0.000325,2]
[425262277,1781639462000,-1218.92300523,0.00032492,7]
[425262273,1781639462000,-1107.96413592,0.00032492,2]
[425262275,1781639462000,-1054.24359435,0.00032492,7]
[425262276,1781639462000,-1276.7759125,0.00032492,7]
[425262274,1781639462000,-1258.69984942,0.00032492,7]
[425262272,1781639462000,-593.0,0.00032477,7]
[425262281,1781639462000,-1000.0,0.000325,7]
[425262271,1781639462000,-200.0,0.000324,12]
[425262270,1781639462000,-250.0,0.00032398,7]
[425262257,1781639462000,-281.18,0.00032303,2]
[425262255,1781639462000,-2160.63,0.000323,7]
[425262262,1781639462000,-829.8,0.00032329,2]
[425262263,1781639462000,-150.0,0.00032345,2]
[425262258,1781639462000,-767.36,0.00032303,5]
[425262259,1781639462000,-498.54,0.00032316,30]
[425262260,1781639462000,-251.0,0.00032316,30]
[425262264,1781639462000,-150.0,0.00032345,2]
[425262268,1781639462000,-150.0,0.00032345,2]
[425262267,1781639462000,-150.0,0.00032345,2]
[425262265,1781639462000,-150.0,0.00032345,2]
[425262266,1781639462000,-150.0,0.00032345,2]
[425262261,1781639462000,-1734.78,0.00032328,2]
[425262269,1781639462000,-150.0,0.00032345,2]
[425262322,1781639463000,-151.0,0.00032877,7]
[425262321,1781639463000,-151.0,0.00032877,7]
[425262319,1781639463000,-1000.0,0.00032877,10]
[425262320,1781639463000,-1000.0,0.00032877,10]
[425262326,1781639463000,-1000.0,0.00032877,10]
[425262318,1781639463000,-1000.0,0.00032877,10]
[425262316,1781639463000,-1000.0,0.00032877,10]
[425262315,1781639463000,-152.721887,0.00032877,7]
[425262314,1781639463000,-151.0,0.00032877,7]
[425262317,1781639463000,-1000.0,0.00032877,10]
[425262323,1781639463000,-1000.0,0.00032877,10]
[425262333,1781639463000,-1000.0,0.00032877,10]
[425262324,1781639463000,-1000.0,0.00032877,10]
[425262327,1781639463000,-1000.0,0.00032877,10]
[425262337,1781639463000,-1000.0,0.00032877,10]
[425262328,1781639463000,-1000.0,0.00032877,10]
[425262331,1781639463000,-1000.0,0.00032877,10]
[425262336,1781639463000,-1000.0,0.00032877,10]
[425262329,1781639463000,-1000.0,0.00032877,10]
[425262330,1781639463000,-1000.0,0.00032877,10]
[425262334,1781639463000,-1000.0,0.00032877,10]
[425262332,1781639463000,-1000.0,0.00032877,10]
[425262313,1781639463000,-151.0,0.00032877,2]
[425262325,1781639463000,-1000.0,0.00032877,10]
[425262309,1781639463000,-168.879474,0.00032877,7]
[425262303,1781639463000,-1000.0,0.00032877,10]
[425262311,1781639463000,-151.0,0.00032877,7]
[425262335,1781639463000,-1000.0,0.00032877,10]
[425262287,1781639463000,-150.0,0.00032562,2]
[425262289,1781639463000,-287.43,0.00032674,30]
[425262288,1781639463000,-395.06,0.0003257,30]
[425262291,1781639463000,-500.0,0.0003279,2]
[425262292,1781639463000,-500.0,0.0003279,2]
[425262290,1781639463000,-829.8,0.0003274,2]
[425262293,1781639463000,-500.0,0.0003279,2]
[425262294,1781639463000,-500.0,0.0003279,2]
[425262296,1781639463000,-500.0,0.0003279,2]
[425262295,1781639463000,-500.0,0.0003279,2]
[425262304,1781639463000,-1000.0,0.00032877,10]
[425262297,1781639463000,-500.0,0.0003279,2]
[425262298,1781639463000,-265.82829754,0.0003279,2]
[425262299,1781639463000,-310.0,0.000328,2]
[425262300,1781639463000,-1000.0,0.000328,2]
[425262302,1781639463000,-581.37258776,0.00032873,2]
[425262301,1781639463000,-316.0,0.000328,2]
[425262305,1781639463000,-1000.0,0.00032877,10]
[425262308,1781639463000,-151.0,0.00032877,7]
[425262307,1781639463000,-1000.0,0.00032877,10]
[425262306,1781639463000,-1000.0,0.00032877,10]
[425262310,1781639463000,-151.0,0.00032877,7]
[425262312,1781639463000,-151.0,0.00032877,2]
[425262338,1781639463000,-1000.0,0.00032877,10]
[425262352,1781639463000,-1000.0,0.00032877,10]
[425262349,1781639463000,-1000.0,0.00032877,10]
[425262370,1781639463000,-1000.0,0.00032877,10]
[425262369,1781639463000,-1000.0,0.00032877,10]
[425262371,1781639463000,-1000.0,0.00032877,10]
[425262372,1781639463000,-1000.0,0.00032877,10]
[425262373,1781639463000,-1000.0,0.00032877,10]
[425262375,1781639463000,-1000.0,0.00032877,10]
[425262379,1781639463000,-159.675396,0.00032877,7]
[425262377,1781639463000,-151.0,0.00032877,7]
[425262381,1781639463000,-159.675396,0.00032877,7]
[425262382,1781639463000,-159.675396,0.00032877,7]
[425262374,1781639463000,-1000.0,0.00032877,10]
[425262378,1781639463000,-151.0,0.00032877,7]
[425262380,1781639463000,-159.675396,0.00032877,7]
[425262383,1781639463000,-159.675396,0.00032877,7]
[425262385,1781639463000,-159.675396,0.00032877,7]
[425262384,1781639463000,-151.0,0.00032877,7]
[425262387,1781639463000,-159.675396,0.00032877,7]
[425262388,1781639463000,-151.0,0.00032877,7]
[425262386,1781639463000,-151.0,0.00032877,7]
[425262389,1781639463000,-446.931541,0.00032877,7]
[425262391,1781639463000,-151.0,0.00032877,7]
[425262390,1781639463000,-159.675396,0.00032877,7]
[425262339,1781639463000,-1000.0,0.00032877,10]
[425262368,1781639463000,-1000.0,0.00032877,10]
[425262364,1781639463000,-1000.0,0.00032877,10]
[425262376,1781639463000,-1000.0,0.00032877,10]
[425262366,1781639463000,-1000.0,0.00032877,10]
[425262340,1781639463000,-1000.0,0.00032877,10]
[425262367,1781639463000,-1000.0,0.00032877,10]
[425262341,1781639463000,-1000.0,0.00032877,10]
[425262343,1781639463000,-1000.0,0.00032877,10]
[425262342,1781639463000,-1000.0,0.00032877,10]
[425262347,1781639463000,-1000.0,0.00032877,10]
[425262346,1781639463000,-1000.0,0.00032877,10]
[425262344,1781639463000,-1000.0,0.00032877,10]
[425262348,1781639463000,-1000.0,0.00032877,10]
[425262350,1781639463000,-1000.0,0.00032877,10]
[425262360,1781639463000,-151.0,0.00032877,7]
[425262359,1781639463000,-151.0,0.00032877,7]
[425262345,1781639463000,-1000.0,0.00032877,10]
[425262354,1781639463000,-1000.0,0.00032877,10]
[425262357,1781639463000,-209.073157,0.00032877,7]
[425262353,1781639463000,-1000.0,0.00032877,10]
[425262356,1781639463000,-151.0,0.00032877,7]